fUSD/lending_fUSD_20260421
["ID","MTS","AMOUNT","RATE_DAILY","PERIOD"]
[420904891,1776703967502,-362.96,0.00011017,2]
[420904892,1776703967511,-200.0,0.00011017,2]
[420904893,1776703967520,-150.0,0.00011099,5]
[420904894,1776703967530,-151.0,0.00011099,5]
[420904895,1776703967539,-4150.7,0.000112,2]
[420904896,1776703967550,-150.0,0.0001122,2]
[420904897,1776703967559,-362.96,0.00011291,2]
[420904898,1776703967568,-1600.0,0.00011438,2]
[420904899,1776703967577,-150.0,0.0001152,2]
[420904900,1776703967587,-968.39,0.00011548,2]
[420904901,1776703967596,-362.99,0.00011565,2]
[420904902,1776703967605,-200.0,0.00011565,2]
[420904903,1776703967615,-3382.0,0.00011682,2]
[420904904,1776703967624,-1068.0,0.00011682,2]
[420904905,1776703967633,-452.0,0.00011682,2]
[420904906,1776703967643,-1001.0,0.00011682,2]
[420904907,1776703967652,-416.0,0.00011682,2]
[420904908,1776703967661,-2176.0,0.00011682,2]
[420904909,1776703967670,-160.0,0.0001176,2]
[420904910,1776703967680,-361.360803,0.0001176,2]
[420904911,1776703967689,-562.721607,0.0001176,2]
[420904912,1776703967698,-150.0,0.0001182,2]
[420904913,1776703967707,-160.0,0.00011869,2]
[420904914,1776703967716,-5300.0,0.000119,4]
[420904915,1776703967725,-1155.6312027,0.00011928,2]
[420904916,1776703967735,-47290.8071788,0.00011928,2]
[420904917,1776703967744,-253.16018245,0.00011999,2]
[420904918,1776703967754,-27489.05172515,0.00012,2]
[420904920,1776703967767,-14699.68223222,0.00012,2]
[420904921,1776703967776,-200.0,0.00012,2]
[420904922,1776703967786,-554.5,0.00012,2]
[420904923,1776703967795,-309.0,0.00012,2]
[420904924,1776703967804,-160.0,0.00012026,2]
[420904925,1776703967813,-2505.572759,0.00012026,2]
[420904926,1776703967822,-4851.145519,0.00012026,2]
[420904927,1776703967832,-198.909162,0.00012026,2]
[420904928,1776703967841,-201.60640572,0.00012113,2]
[420904929,1776703967851,-158.79209244,0.00012118,2]
[420904930,1776703967860,-150.0,0.0001212,2]
[420904931,1776703967869,-2000.0,0.00012187,2]
[420904932,1776703967879,-416.61674181,0.00012187,2]
[420904933,1776703967888,-299.685958,0.00012237,2]
[420904934,1776703967897,-151.0,0.00012267,2]
[420904935,1776703967906,-3961.53546472,0.00012271,2]
[420904936,1776703967918,-2204.66739598,0.00012271,2]
[420904937,1776703967927,-710.79975114,0.00012277,2]
[420904938,1776703967937,-151.0,0.00012317,2]
[420904939,1776703967946,-492.764732,0.00012348,2]
[420904940,1776703967956,-150.0,0.0001242,2]
[420904941,1776703967965,-150.0,0.00012477,2]
[420904942,1776703967974,-150.0,0.00012477,2]
[420904943,1776703967983,-150.0,0.00012477,2]
[420904944,1776703967992,-150.0,0.00012477,2]
[420904945,1776703968002,-150.0,0.00012477,2]
[420904946,1776703968011,-150.0,0.00012477,2]
[420904947,1776703968020,-150.0,0.00012477,2]
[420904948,1776703968030,-150.0,0.00012477,2]
[420904949,1776703968042,-150.0,0.00012477,2]
[420904951,1776703968051,-150.0,0.00012477,2]
[420904952,1776703968061,-8258.96023475,0.00012487,2]
[420904953,1776703968070,-150.0,0.00012501,2]
[420904954,1776703968079,-219.64,0.00012528,2]
[420904955,1776703968088,-150.0,0.00012555,2]
[420904956,1776703968097,-150.0,0.00012608,2]
[420904957,1776703968107,-3416.690126,0.00012627,2]
[420904958,1776703968116,-150.0,0.0001265,2]
[420904959,1776703968125,-150.0,0.00012662,2]
[420904960,1776703968134,-150.0,0.00012675,2]
[420904961,1776703968143,-156.0,0.000127,5]
[420904962,1776703968153,-1375.8658318,0.00012713,2]
[420904963,1776703968162,-150.0,0.00012715,2]
[420904964,1776703968171,-150.0,0.0001272,2]
[420904965,1776703968181,-150.0,0.00012754,2]
[420904966,1776703968190,-150.0,0.00012754,2]
[420904967,1776703968199,-150.0,0.00012768,2]
[420904968,1776703968209,-150.0,0.00012822,2]
[420904969,1776703968218,-150.0,0.00012823,2]
[420904970,1776703968227,-204.331335,0.00012849,2]
[420904971,1776703968236,-150.0,0.00012873,2]
[420904972,1776703968246,-150.0,0.00012875,2]
[420904973,1776703968255,-1576.0,0.00012893,2]
[420904974,1776703968264,-162.0,0.00012893,2]
[420904975,1776703968274,-162.0,0.00012893,2]
[420904976,1776703968283,-162.0,0.00012893,2]
[420904977,1776703968292,-1576.0,0.00012893,2]
[420904978,1776703968302,-1576.0,0.00012893,2]
[420904979,1776703968311,-1576.0,0.00012893,2]
[420904980,1776703968320,-1576.0,0.00012893,2]
[420904981,1776703968329,-1576.0,0.00012893,2]
[420904982,1776703968338,-1576.0,0.00012893,2]
[420904983,1776703968348,-1576.0,0.00012893,2]
[420904984,1776703968357,-1576.0,0.00012893,2]
[420904986,1776703968366,-1576.0,0.00012893,2]
[420904987,1776703968375,-1576.0,0.00012893,2]
[420904988,1776703968384,-1576.0,0.00012893,2]
[420904989,1776703968394,-1576.0,0.00012893,2]
[420904990,1776703968403,-2817.0,0.00012893,2]
[420904991,1776703968413,-162.0,0.00012893,2]
[420904992,1776703968422,-1576.0,0.00012893,2]
[420904993,1776703968432,-2817.0,0.00012893,2]
[420904994,1776703968441,-162.0,0.00012893,2]
[420904995,1776703968450,-1576.0,0.00012893,2]
[420904996,1776703968459,-2817.0,0.00012893,2]
[420904997,1776703968468,-162.0,0.00012893,2]
[420904998,1776703968477,-2817.0,0.00012893,2]
[420904999,1776703968487,-162.0,0.00012893,2]
[420905000,1776703968496,-1576.0,0.00012893,2]
[420905001,1776703968506,-2817.0,0.00012893,2]
[420905002,1776703968515,-162.0,0.00012893,2]
[420905003,1776703968524,-1576.0,0.00012893,2]
[420905004,1776703968534,-720.89400299,0.00012893,2]
[420905005,1776703968550,-2096.10599701,0.00012893,2]
[420905006,1776703968559,-162.0,0.00012893,2]
[420905007,1776703968569,-1576.0,0.00012893,2]
[420905008,1776703968578,-2817.0,0.00012893,2]
[420905009,1776703968587,-162.0,0.00012893,2]
[420905010,1776703968597,-310.89400277,0.00012893,2]
[420905011,1776703968608,-753.07092822,0.00012893,2]
[420905012,1776703968635,-265.84703492,0.00012893,2]
[420905014,1776703968719,-246.18803409,0.00012893,2]
[420905015,1776703968729,-2817.0,0.00012893,2]
[420905016,1776703968739,-1576.0,0.00012893,2]
[420905017,1776703968748,-2817.0,0.00012893,2]
[420905018,1776703968758,-162.0,0.00012893,2]
[420905019,1776703968768,-1576.0,0.00012893,2]
[420905020,1776703968777,-2817.0,0.00012893,2]
[420905021,1776703968786,-1576.0,0.00012893,2]
[420905022,1776703968796,-2817.0,0.00012893,2]
[420905023,1776703968805,-162.0,0.00012893,2]
[420905024,1776703968814,-1576.0,0.00012893,2]
[420905025,1776703968824,-2817.0,0.00012893,2]
[420905026,1776703968833,-162.0,0.00012893,2]
[420905027,1776703968842,-1576.0,0.00012893,2]
[420905028,1776703968852,-2817.0,0.00012893,2]
[420905029,1776703968861,-162.0,0.00012893,2]
[420905030,1776703968870,-1576.0,0.00012893,2]
[420905031,1776703968880,-2817.0,0.00012893,2]
[420905032,1776703968889,-162.0,0.00012893,2]
[420905033,1776703968899,-1576.0,0.00012893,2]
[420905034,1776703968909,-2817.0,0.00012893,2]
[420905035,1776703968919,-162.0,0.00012893,2]
[420905036,1776703968928,-1576.0,0.00012893,2]
[420905037,1776703968938,-2817.0,0.00012893,2]
[420905038,1776703968948,-162.0,0.00012893,2]
[420905040,1776703968957,-1576.0,0.00012893,2]
[420905041,1776703968967,-2740.35158907,0.00012893,2]
[420905042,1776703968987,-76.64841093,0.00012893,2]
[420905043,1776703968996,-162.0,0.00012893,2]
[420905044,1776703969005,-1370.65231907,0.00012893,2]
[420905045,1776703971157,-205.34768093,0.00012893,2]
[420905046,1776703971167,-174.89650345,0.00012893,2]
[420905047,1776703971189,-2642.10349655,0.00012893,2]
[420905048,1776703971199,-162.0,0.00012893,2]
[420905049,1776703971210,-1576.0,0.00012893,2]
[420905050,1776703971219,-2479.88927782,0.00012893,2]
[420905051,1776703971255,-337.11072218,0.00012893,2]
[420905052,1776703971264,-162.0,0.00012893,2]
[420905053,1776703971274,-81.18129117,0.00012893,2]
[420905054,1776703971285,-252.9257169,0.00012893,2]
[420905055,1776703971339,-1241.89299193,0.00012893,2]
[420905056,1776703971349,-2817.0,0.00012893,2]
[420905057,1776703971359,-162.0,0.00012893,2]
[420905058,1776703971368,-1576.0,0.00012893,2]
[420905059,1776703971377,-2817.0,0.00012893,2]
[420905060,1776703971387,-162.0,0.00012893,2]
[420905061,1776703971397,-1576.0,0.00012893,2]
[420905062,1776703971406,-2817.0,0.00012893,2]
[420905063,1776703971416,-162.0,0.00012893,2]
[420905064,1776703971425,-2817.0,0.00012893,2]
[420905065,1776703971435,-162.0,0.00012893,2]
[420905066,1776703971444,-1295.0,0.00012893,2]
[420905067,1776703971454,-2817.0,0.00012893,2]
[420905068,1776703971463,-162.0,0.00012893,2]
[420905069,1776703971472,-2817.0,0.00012893,2]
[420905070,1776703971482,-162.0,0.00012893,2]
[420905071,1776703971491,-2817.0,0.00012893,2]
[420905072,1776703971501,-162.0,0.00012893,2]
[420905073,1776703971510,-162.0,0.00012893,2]
[420905074,1776703971520,-2817.0,0.00012893,2]
[420905075,1776703971530,-2817.0,0.00012893,2]
[420905076,1776703971539,-176.0,0.00012893,2]
[420905077,1776703971548,-2817.0,0.00012893,2]
[420905078,1776703971558,-2817.0,0.00012893,2]
[420905079,1776703971567,-2817.0,0.00012893,2]
[420905080,1776703971577,-2817.0,0.00012893,2]
[420905081,1776703971586,-2817.0,0.00012893,2]
[420905082,1776703971596,-2817.0,0.00012893,2]
[420905083,1776703971605,-2817.0,0.00012893,2]
[420905084,1776703971615,-2817.0,0.00012893,2]
[420905085,1776703971624,-2817.0,0.00012893,2]
[420905086,1776703971634,-2817.0,0.00012893,2]
[420905087,1776703971644,-2817.0,0.00012893,2]
[420905088,1776703971653,-1674.0,0.00012893,2]
[420905089,1776703971664,-309.0,0.00012893,2]
[420905090,1776703971673,-309.0,0.00012893,2]
[420905091,1776703971683,-309.0,0.00012893,2]
[420905092,1776703971693,-311.30334436,0.00012893,2]
[420905093,1776703971702,-1576.0,0.00012908,2]
[420905094,1776703971711,-150.0,0.00012929,2]
[420905095,1776703971721,-150.0,0.00012982,2]
[420905096,1776703971730,-150.0,0.00012997,2]
[420905097,1776703971740,-7310.16760939,0.00013,5]
[420905098,1776703972111,-815.63896878,0.00013,5]
[420905099,1776703972121,-250.0,0.00013,2]
[420905100,1776703972131,-150.0,0.0001302,2]
[420905101,1776703972140,-150.0,0.00013031,2]
[420905102,1776703972151,-150.0,0.00013031,2]
[420905103,1776703972160,-150.0,0.00013036,2]
[420905104,1776703972170,-150.0,0.00013071,2]
[420905105,1776703972179,-150.0,0.00013089,2]
[420905106,1776703972188,-150.0,0.00013142,2]
[420905107,1776703972198,-150.0,0.0001317,2]
[420905108,1776703972208,-150.0,0.0001317,2]
[420905109,1776703972219,-150.0,0.0001317,2]
[420905110,1776703972228,-150.0,0.00013196,2]
[420905111,1776703972239,-150.0,0.00013249,2]
[420905112,1776703972248,-219.62854623,0.00013256,2]
[420905113,1776703972258,-150.0,0.00013269,2]
[420905114,1776703972267,-1922.67425211,0.00013285,2]
[420905115,1776703972278,-150.0,0.00013303,2]
[420905116,1776703972287,-150.0,0.00013308,2]
[420905117,1776703972297,-150.0,0.00013308,2]
[420905118,1776703972308,-150.0,0.0001332,2]
[420905119,1776703972318,-150.0,0.00013343,2]
[420905120,1776703972328,-150.0,0.00013356,2]
[420905121,1776703972338,-219.64,0.00013374,2]
[420905122,1776703972349,-2000.0,0.00013405,2]
[420905123,1776703972358,-150.0,0.0001341,2]
[420905124,1776703972368,-150.0,0.00013463,2]
[420905125,1776703972378,-150.0,0.00013467,2]
[420905126,1776703972388,-504.0,0.000135,2]
[420905127,1776703972397,-150.0,0.00013516,2]
[420905128,1776703972407,-150.0,0.00013516,2]
[420905129,1776703972417,-256.23766,0.00013524,2]
[420905130,1776703972427,-150.0,0.0001357,2]
[420905131,1776703972437,-150.0,0.00013586,2]
[420905132,1776703972446,-150.0,0.00013586,2]
[420905133,1776703972456,-155.08109936,0.00013599,2]
[420905134,1776703972465,-150.0,0.0001362,2]
[420905135,1776703972475,-150.0,0.00013623,2]
[420905136,1776703972484,-10552.0053793,0.00013662,2]
[420905137,1776703972495,-150.0,0.00013665,2]
[420905138,1776703972505,-150.0,0.00013677,2]
[420905139,1776703972515,-150.0,0.0001369,2]
[420905140,1776703972526,-500.0,0.00013698,2]
[420905141,1776703972536,-500.0,0.00013698,2]
[420905142,1776703972546,-500.0,0.00013698,2]
[420905143,1776703972556,-500.0,0.00013698,2]
[420905144,1776703972566,-500.0,0.00013698,2]
[420905145,1776703972575,-500.0,0.00013698,2]
[420905146,1776703972585,-500.0,0.00013698,2]
[420905147,1776703972595,-500.0,0.00013698,2]
[420905148,1776703972605,-500.0,0.00013698,2]
[420905149,1776703972617,-500.0,0.00013698,2]
[420905150,1776703972628,-500.0,0.00013698,2]
[420905151,1776703972638,-500.0,0.00013698,2]
[420905152,1776703972649,-500.0,0.00013698,2]
[420905153,1776703972661,-500.0,0.00013698,2]
[420905154,1776703972671,-500.0,0.00013698,2]
[420905155,1776703972681,-500.0,0.00013698,2]
[420905156,1776703972691,-500.0,0.00013698,2]
[420905157,1776703972701,-500.0,0.00013698,2]
[420905158,1776703972710,-500.0,0.00013698,2]
[420905159,1776703972720,-500.0,0.00013698,2]
[420905160,1776703972730,-500.0,0.00013698,2]
[420905161,1776703972741,-500.0,0.00013698,2]
[420905162,1776703972751,-500.0,0.00013698,2]
[420905163,1776703972762,-500.0,0.00013698,2]
[420905164,1776703972773,-501.06268498,0.00013698,2]
[420905165,1776703972783,-500.0,0.00013698,2]
[420905166,1776703972794,-500.0,0.00013698,2]
[420905167,1776703972803,-778.67,0.00013698,2]
[420905168,1776703972814,-778.67,0.00013698,2]
[420905169,1776703972824,-778.67,0.00013698,2]
[420905170,1776703972834,-778.67,0.00013698,2]
[420905171,1776703972845,-778.67,0.00013698,2]
[420905172,1776703972855,-778.67,0.00013698,2]
[420905173,1776703972865,-778.67,0.00013698,2]
[420905174,1776703972875,-1145.0,0.00013698,2]
[420905175,1776703972885,-1145.0,0.00013698,2]
[420905176,1776703972894,-1145.0,0.00013698,2]
[420905177,1776703972904,-1145.0,0.00013698,2]
[420905178,1776703972915,-1145.0,0.00013698,2]
[420905179,1776703972925,-1145.0,0.00013698,2]
[420905180,1776703972936,-668.22,0.00013698,2]
[420905181,1776703972945,-668.22,0.00013698,2]
[420905182,1776703972956,-140.38573891,0.00013698,2]
[420905183,1776703972969,-527.83426109,0.00013698,2]
[420905184,1776703972979,-668.22,0.00013698,2]
[420905185,1776703972988,-630.08440051,0.00013698,2]
[420905186,1776703973036,-38.13559949,0.00013698,2]
[420905187,1776703973046,-668.22,0.00013698,2]
[420905188,1776703973056,-500.0,0.00013698,2]
[420905189,1776703973066,-500.0,0.00013698,2]
[420905190,1776703973076,-500.0,0.00013698,2]
[420905191,1776703973085,-500.0,0.00013698,2]
[420905192,1776703973095,-500.0,0.00013698,2]
[420905193,1776703973105,-264.14141601,0.00013698,2]
[420905194,1776703973115,-500.0,0.00013698,2]
[420905195,1776703973125,-500.0,0.00013698,2]
[420905196,1776703973135,-500.0,0.00013698,2]
[420905197,1776703973145,-500.0,0.00013698,2]
[420905198,1776703973155,-500.0,0.00013698,2]
[420905199,1776703973165,-500.0,0.00013698,2]
[420905200,1776703973175,-500.0,0.00013698,2]
[420905201,1776703973185,-500.0,0.00013698,2]
[420905202,1776703973195,-500.0,0.00013698,2]
[420905203,1776703973204,-500.0,0.00013698,2]
[420905204,1776703973213,-500.0,0.00013698,2]
[420905205,1776703973223,-500.0,0.00013698,2]
[420905206,1776703973233,-500.0,0.00013698,2]
[420905207,1776703973242,-500.0,0.00013698,2]
[420905208,1776703973252,-500.0,0.00013698,2]
[420905209,1776703973261,-500.0,0.00013698,2]
[420905210,1776703973271,-500.0,0.00013698,2]
[420905211,1776703973280,-500.0,0.00013698,2]
[420905212,1776703973290,-500.0,0.00013698,2]
[420905213,1776703973300,-500.0,0.00013698,2]
[420905214,1776703973309,-500.0,0.00013698,2]
[420905215,1776703973320,-500.0,0.00013698,2]
[420905216,1776703973670,-500.0,0.00013698,2]
[420905217,1776703973680,-500.0,0.00013698,2]
[420905218,1776703973690,-500.0,0.00013698,2]
[420905219,1776703973699,-500.0,0.00013698,2]
[420905220,1776703973709,-500.0,0.00013698,2]
[420905221,1776703973718,-500.0,0.00013698,2]
[420905222,1776703973728,-403.63655641,0.00013698,2]
[420905223,1776703973737,-718.19,0.00013699,2]
[420905224,1776703973747,-166.66,0.00013699,2]
[420905225,1776703973757,-200.0,0.00013699,2]
[420905226,1776703973767,-500.0,0.00013699,2]
[420905227,1776703973777,-500.0,0.00013699,2]
[420905228,1776703973786,-500.0,0.00013699,2]
[420905229,1776703973796,-500.0,0.00013699,2]
[420905230,1776703973805,-500.67020217,0.00013699,2]
[420905231,1776703973814,-500.0,0.00013699,2]
[420905232,1776703973823,-500.0,0.00013699,2]
[420905233,1776703973833,-501.00571865,0.00013699,2]
[420905234,1776703973842,-500.0,0.00013699,2]
[420905235,1776703973851,-500.0,0.00013699,2]
[420905236,1776703973861,-500.0,0.00013699,2]
[420905237,1776703973874,-500.0,0.00013699,2]
[420905238,1776703973884,-340.45534034,0.00013699,2]
[420905239,1776703973893,-211.48000666,0.00013699,2]
[420905240,1776703973902,-404.48368728,0.00013699,2]
[420905241,1776703973911,-500.0,0.00013699,2]
[420905242,1776703973921,-500.0,0.00013699,2]
[420905243,1776703973930,-519.99812244,0.00013699,2]
[420905244,1776703973939,-500.0,0.00013699,2]
[420905245,1776703973948,-500.0,0.00013699,2]
[420905246,1776703973958,-500.0,0.00013699,2]
[420905247,1776703973967,-200.02943146,0.00013699,2]
[420905248,1776703973978,-500.0,0.00013699,2]
[420905249,1776703973987,-500.0,0.00013699,2]
[420905250,1776703973996,-500.0,0.00013699,2]
[420905251,1776703974006,-500.61074632,0.00013699,2]
[420905252,1776703974015,-318.25209482,0.00013699,2]
[420905253,1776703974024,-500.0,0.00013699,2]
[420905254,1776703974034,-200.02943146,0.00013699,2]
[420905255,1776703974043,-500.0,0.00013699,2]
[420905256,1776703974053,-500.0,0.00013699,2]
[420905257,1776703974062,-500.0,0.00013699,2]
[420905258,1776703974072,-500.0,0.00013699,2]
[420905259,1776703974081,-500.0,0.00013699,2]
[420905260,1776703974090,-500.0,0.00013699,2]
[420905261,1776703974100,-500.0,0.00013699,2]
[420905262,1776703974109,-500.0,0.00013699,2]
[420905263,1776703974118,-500.34906078,0.00013699,2]
[420905264,1776703974128,-500.0,0.00013699,2]
[420905265,1776703974137,-500.0,0.00013699,2]
[420905266,1776703974146,-500.72370135,0.00013699,2]
[420905267,1776703974156,-167.10086257,0.00013699,2]
[420905268,1776703974165,-500.0,0.00013699,2]
[420905269,1776703974175,-491.60420064,0.00013699,2]
[420905270,1776703974185,-1111.12,0.00013699,4]
[420905271,1776703974194,-1111.12,0.00013699,4]
[420905272,1776703974204,-1111.12,0.00013699,7]
[420905273,1776703974214,-1000.0,0.00013699,2]
[420905274,1776703974223,-432.0,0.00013699,2]
[420905275,1776703974233,-432.0,0.00013699,2]
[420905276,1776703974243,-432.0,0.00013699,2]
[420905277,1776703974252,-432.0,0.00013699,2]
[420905278,1776703974262,-432.0,0.00013699,2]
[420905279,1776703974271,-432.0,0.00013699,2]
[420905280,1776703974281,-432.0,0.00013699,2]
[420905281,1776703974290,-432.0,0.00013699,2]
[420905282,1776703974300,-432.0,0.00013699,2]
[420905283,1776703974309,-434.35778259,0.00013699,2]
[420905284,1776703974319,-1018.52,0.00013699,4]
[420905285,1776703974329,-1018.52,0.00013699,4]
[420905286,1776703974338,-1018.52,0.00013699,4]
[420905287,1776703974347,-1018.52,0.00013699,4]
[420905288,1776703974356,-1018.52,0.00013699,4]
[420905289,1776703974366,-1018.52,0.00013699,4]
[420905290,1776703974376,-1018.52,0.00013699,4]
[420905291,1776703974386,-1018.52,0.00013699,4]
[420905292,1776703974396,-1018.52,0.00013699,4]
[420905293,1776703974405,-1018.52,0.00013699,7]
[420905294,1776703974415,-1018.52,0.00013699,7]
[420905295,1776703974425,-1018.52,0.00013699,7]
[420905296,1776703974435,-1018.52,0.00013699,7]
[420905297,1776703974444,-1018.52,0.00013699,7]
[420905298,1776703974454,-1018.52,0.00013699,7]
[420905299,1776703974463,-446.22705303,0.00013699,2]
[420905300,1776703974474,-500.0,0.00013699,2]
[420905301,1776703974484,-500.0,0.00013699,2]
[420905302,1776703974494,-500.0,0.00013699,2]
[420905303,1776703974504,-500.0,0.00013699,2]
[420905304,1776703974514,-500.0,0.00013699,2]
[420905305,1776703974525,-1111.12,0.000137,4]
[420905306,1776703974535,-1111.12,0.000137,7]
[420905307,1776703974545,-150.0,0.000137,2]
[420905308,1776703974555,-150.0,0.000137,2]
[420905309,1776703974564,-150.21380411,0.000137,2]
[420905310,1776703974574,-2675.56,0.000137,2]
[420905311,1776703974585,-2017.72,0.000137,2]
[420905312,1776703974594,-786.99,0.00013725,2]
[420905313,1776703974604,-8478.99441974,0.0001373,2]
[420905314,1776703974614,-150.0,0.0001373,2]
[420905315,1776703974625,-150.0,0.00013784,2]
[420905316,1776703974635,-1776.678865,0.00013829,7]
[420905317,1776703974647,-166.66,0.00013836,2]
[420905318,1776703974657,-150.0,0.00013837,2]
[420905319,1776703974667,-150.0,0.00013863,2]
[420905320,1776703974677,-150.0,0.00013863,2]
[420905321,1776703974687,-150.0,0.00013863,2]
[420905322,1776703974697,-150.0,0.00013863,2]
[420905323,1776703974707,-150.94695297,0.00013863,2]
[420905324,1776703974717,-150.0,0.00013863,2]
[420905325,1776703974727,-151.13714091,0.00013863,2]
[420905326,1776703974738,-150.0,0.00013863,2]
[420905327,1776703974747,-150.0,0.00013863,2]
[420905328,1776703974757,-150.0,0.00013863,2]
[420905329,1776703974768,-150.0,0.0001389,2]
[420905330,1776703974777,-7900.0,0.000139,5]
[420905331,1776703974787,-200.0,0.0001392,2]
[420905332,1776703974798,-500.0,0.00013973,2]
[420905333,1776703974807,-500.0,0.00013973,2]
[420905334,1776703974817,-166.66,0.00013973,2]
[420905335,1776703974827,-778.67,0.00013984,2]
[420905336,1776703974837,-1576.0,0.00013985,2]
[420905337,1776703974847,-1145.0,0.00013989,2]
[420905338,1776703974856,-668.22,0.00013989,2]
[420905339,1776703974866,-500.0,0.00013989,2]
[420905340,1776703974876,-500.0,0.00013989,2]
[420905341,1776703974886,-500.0,0.00013989,2]
[420905342,1776703974897,-500.0,0.00013989,2]
[420905343,1776703974907,-40823.35120257,0.0001399,2]
[420905344,1776703975316,-19176.64879743,0.0001399,2]
[420905345,1776703975325,-500.0,0.00013999,2]
[420905346,1776703975335,-3961.9,0.00014,2]
[420905347,1776703975345,-19405.07,0.00014,2]
[420905348,1776703975355,-2284.16,0.00014,2]
[420905349,1776703975364,-4150.7,0.00014,2]
[420905350,1776703975374,-140522.08,0.00014,2]
[420905351,1776703975383,-200.0,0.00014,2]
[420905352,1776703975393,-778.67,0.00014049,2]
[420905353,1776703975404,-2354.4706501,0.00014049,2]
[420905354,1776703975414,-166.66,0.0001411,2]
[420905355,1776703975423,-1218.48987383,0.00014202,2]
[420905356,1776703975432,-200.0,0.0001422,2]
[420905357,1776703975442,-166.66,0.00014247,2]
[420905358,1776703975451,-1000.0,0.00014247,2]
[420905359,1776703975461,-1000.0,0.00014247,2]
[420905360,1776703975470,-1000.0,0.00014247,2]
[420905361,1776703975479,-1000.0,0.00014247,2]
[420905362,1776703975488,-1040.7543966,0.00014247,2]
[420905363,1776703975498,-810.66588032,0.00014247,2]
[420905364,1776703975507,-1000.0,0.00014247,2]
[420905365,1776703975516,-1000.0,0.00014247,2]
[420905366,1776703975525,-735.10519631,0.00014247,2]
[420905367,1776703975534,-1000.0,0.00014247,2]
[420905368,1776703975544,-1000.0,0.00014247,2]
[420905369,1776703975553,-1000.0,0.00014247,2]
[420905370,1776703975562,-1000.0,0.00014247,2]
[420905371,1776703975572,-1000.0,0.00014247,2]
[420905372,1776703975581,-1000.0,0.00014247,2]
[420905373,1776703975590,-1000.0,0.00014247,2]
[420905374,1776703975600,-247.68044899,0.00014247,2]
[420905375,1776703975610,-1000.0,0.00014247,2]
[420905376,1776703975620,-1000.0,0.00014247,2]
[420905377,1776703975630,-1000.0,0.00014247,2]
[420905378,1776703975640,-1000.0,0.00014247,2]
[420905379,1776703975650,-1000.0,0.00014247,2]
[420905380,1776703975660,-1000.0,0.00014247,2]
[420905381,1776703975669,-1000.0,0.00014247,2]
[420905382,1776703975679,-1000.0,0.00014247,2]
[420905383,1776703975689,-572.71695353,0.00014247,2]
[420905384,1776703975699,-194.45786638,0.00014247,2]
[420905385,1776703975708,-694.82123559,0.00014247,2]
[420905386,1776703975717,-1000.0,0.00014247,2]
[420905387,1776703975725,-1000.0,0.00014247,2]
[420905388,1776703975734,-504.0,0.00014264,2]
[420905389,1776703975744,-1576.0,0.00014305,2]
[420905390,1776703975753,-1576.0,0.0001436,2]
[420905391,1776703975763,-1576.0,0.0001436,2]
[420905392,1776703975772,-219.64,0.0001437,2]
[420905393,1776703975781,-1145.0,0.00014383,2]
[420905394,1776703975791,-668.22,0.00014383,2]
[420905395,1776703975801,-500.0,0.00014383,2]